bitfinex-derivatives/quotes_BNBF0:USTF0_20250630
["timestamp","ask_amount","ask_price","bid_price","bid_amount"]
[1751309271064,0.2645201,658.17,657.69,1.18882256]
[1751309271269,0.2645201,658.17,657.68,3.71]
[1751309271464,0.2645201,658.17,657.69,1.18879863]
[1751309271667,0.2645201,658.17,657.68,3.71]
[1751309271869,0.2645201,658.17,657.69,1.18879863]
[1751309272066,0.2645201,658.17,657.68,3.71]
[1751309272265,0.2645201,658.17,657.69,1.18877694]
[1751309272566,0.2645201,658.17,657.7,1.18877018]
[1751309272766,0.2645201,658.17,657.68,3.71]
[1751309272964,0.2645201,658.17,657.71,3.331]
[1751309291682,0.2645201,658.17,657.72,4.046]
[1751309304701,0.2645201,658.17,657.73,2.56]
[1751309314605,3.79125171,658.42,657.73,2.56]
[1751309314802,0.26457239,658.07,657.73,2.56]
[1751309315007,3.79125171,658.43,657.73,2.56]
[1751309315500,0.2645744,657.99,657.73,2.56]
[1751309315698,3.79125171,658.43,657.73,2.56]
[1751309316002,0.26457339,658.26,657.73,2.56]
[1751309352822,3.79125171,658.24,657.73,2.56]
[1751309353623,3.79125171,658.24,657.6,4.001]
[1751309353923,3.79125171,658.23,657.6,4.001]
[1751309354823,4.0558251,658.26,657.6,4.001]
[1751309355821,0.26457339,658.26,657.6,4.001]
[1751309356720,0.26457339,658.26,657.61,3.226]
[1751309358420,3.79125171,658.25,657.61,3.226]
[1751309360437,3.79125171,658.25,657.61,2.27496228]
[1751309362327,3.79125171,658.24,657.61,2.27496228]
[1751309362625,3.79125171,658.21,657.61,0.37284452]
[1751309363730,3.79125171,658.21,657.6,2.47172676]
[1751309364227,3.79125171,658.19,657.6,2.47172676]
[1751309364729,3.79125171,658.2,657.6,2.47172676]
[1751309365831,3.79125171,658.19,657.6,2.47172676]
[1751309367031,3.79125171,658.2,657.6,2.47172676]
[1751309367327,3.79125171,658.21,657.6,2.47172676]
[1751309368433,3.79125171,658.22,657.6,2.47172676]
[1751309368830,0.26457339,658.26,657.6,2.47172676]
[1751309382949,4.0558251,658.26,657.6,2.47172676]
[1751309383551,3.79125171,658.24,657.6,2.47172676]
[1751309384650,3.79125171,658.23,657.6,2.47172676]
[1751309385550,3.79125171,658.19,657.6,2.47172676]
[1751309386750,3.79125171,658.18,657.6,2.47172676]
[1751309387652,3.79125171,658.22,657.6,2.47172676]
[1751309388351,0.26457339,658.26,657.6,2.47172676]
[1751309388649,3.79125171,658.22,657.6,2.47172676]
[1751309389357,3.79125171,658.21,657.6,2.47172676]
[1751309389749,0.26457339,658.26,657.6,2.47172676]
[1751309401258,0.26457339,658.26,657.0,0.26462973]
[1751309401457,0.26457339,658.26,657.01,2.84222405]
[1751309401657,0.26457339,658.26,657.02,2.84222405]
[1751309401861,0.26457339,658.26,657.03,2.84222405]
[1751309402064,0.26457339,658.26,657.04,2.84222405]
[1751309402358,0.26457339,658.26,657.05,2.84222405]
[1751309402558,0.26457339,658.26,657.06,2.84222405]
[1751309402759,0.26457339,658.26,657.07,2.84222405]
[1751309402962,0.26457339,658.26,657.08,2.84222405]
[1751309403158,0.26457339,658.26,657.09,2.23198716]
[1751309403359,0.26457339,658.26,657.1,2.23198716]
[1751309403562,0.26457339,658.26,657.11,2.23198716]
[1751309403760,0.26457339,658.26,657.12,2.23198716]
[1751309403959,0.26457339,658.26,657.13,2.23198716]
[1751309404163,0.26457339,658.26,657.14,2.23198716]
[1751309404360,0.26457339,658.26,657.15,2.23198716]
[1751309404559,0.26457339,658.26,657.07,3.804]
[1751309404560,0.26457339,658.26,657.16,2.23198716]
[1751309404762,0.26457339,658.26,657.17,2.23198716]
[1751309404962,0.26457339,658.26,657.18,1.18583087]
[1751309405259,0.26457339,658.26,657.19,1.18583087]
[1751309405460,0.26457339,658.26,657.2,1.18583087]
[1751309405664,0.26457339,658.26,657.21,1.18583087]
[1751309405863,0.26457339,658.26,657.22,1.18583087]
[1751309406060,0.26457339,658.26,657.07,3.804]
[1751309406263,0.26457339,658.26,657.08,2.23344743]
[1751309406459,0.26457339,658.26,657.09,2.23344743]
[1751309406760,0.26457339,658.26,657.1,2.23344743]
[1751309406958,0.26457339,658.26,657.11,2.23344743]
[1751309407182,0.26457339,658.26,657.12,2.23344743]
[1751309407360,0.26457339,658.26,657.13,2.23344743]
[1751309407563,0.26457339,658.26,657.14,2.23344743]
[1751309407759,0.26457339,658.26,657.15,2.23344743]
[1751309407963,0.26457339,658.26,657.16,2.23344743]
[1751309408164,0.26457339,658.26,657.17,1.18676048]
[1751309408360,0.26457339,658.26,657.18,1.18676048]
[1751309408559,0.26457339,658.26,657.19,1.18676048]
[1751309408764,0.26457339,658.26,657.2,1.18676048]
[1751309408963,0.26457339,658.26,657.21,1.18676048]
[1751309409165,0.26457339,658.26,657.22,1.18676048]
[1751309409462,0.26457339,658.26,657.23,1.18676048]
[1751309409760,0.26457339,658.26,657.24,1.18676048]
[1751309409966,0.26457339,658.26,657.25,1.18676048]
[1751309410165,0.26457339,658.26,657.26,1.18676048]
[1751309410365,0.26457339,658.26,657.27,1.18676048]
[1751309410567,0.26457339,658.26,657.07,3.804]
[1751309410766,0.26457339,658.26,657.08,2.2334557]
[1751309410968,0.26457339,658.26,657.09,2.2334557]
[1751309411263,0.26457339,658.26,657.1,2.2334557]
[1751309411463,0.26457339,658.26,657.11,2.2334557]
[1751309411668,0.26457339,658.26,657.12,2.2334557]
[1751309411963,0.26457339,658.26,657.13,2.2334557]
[1751309412167,0.26457339,658.26,657.14,2.2334557]
[1751309412368,0.26457339,658.26,657.15,2.2334557]
[1751309412569,0.26457339,658.26,657.16,1.18686073]
[1751309412864,4.0558251,658.26,657.17,1.18686073]
[1751309413068,4.0558251,658.26,657.18,1.18686073]
[1751309413272,4.0558251,658.26,657.19,1.18686073]
[1751309413469,4.0558251,658.26,657.2,1.18686073]
[1751309413666,4.0558251,658.26,657.21,1.18686073]
[1751309413968,0.26457339,658.26,657.22,1.18686073]
[1751309414169,0.26457339,658.26,657.23,1.18686073]
[1751309414468,3.79125171,658.25,657.24,1.18686073]
[1751309414670,3.79125171,658.25,657.25,1.18686073]
[1751309414868,3.79125171,658.25,657.26,1.18686073]
[1751309415070,3.79125171,658.25,657.27,1.18686073]
[1751309415283,3.79125171,658.25,657.04,4.74367648]
[1751309415571,3.79125171,658.25,657.06,1.13867648]
[1751309415772,3.79125171,658.25,657.07,2.23348959]
[1751309415966,3.79125171,658.25,657.13,1.13867648]
[1751309416269,3.79125171,658.25,657.14,2.23348959]
[1751309416467,3.79125171,658.25,657.15,2.23348959]
[1751309416674,3.79125171,658.25,657.16,1.18698077]
[1751309416869,3.79125171,658.25,657.17,1.18698077]
[1751309417071,3.79125171,658.21,657.18,1.18698077]
[1751309417370,3.79125171,658.21,657.19,1.18698077]
[1751309417571,3.79125171,658.21,657.2,1.18698077]
[1751309417768,3.79125171,658.21,657.21,1.18698077]
[1751309417973,3.79125171,658.21,657.22,1.18698077]
[1751309418172,3.79125171,658.21,657.23,1.18698077]
[1751309418373,3.79125171,658.21,657.24,1.18698077]
[1751309418671,3.79125171,658.18,657.25,1.18698077]
[1751309418869,3.79125171,658.18,657.26,1.18698077]
[1751309419171,3.79125171,658.18,657.27,1.18698077]
[1751309419372,3.79125171,658.18,657.28,1.18698077]
[1751309419569,3.79125171,658.18,657.29,1.18698077]
[1751309419773,3.79125171,658.18,657.3,1.18698077]
[1751309419976,3.79125171,658.18,657.25,3.651]
[1751309420170,0.26457339,658.26,657.26,1.18639928]
[1751309420473,0.26457339,658.26,657.27,1.18639928]
[1751309420770,0.26457339,658.26,657.28,1.18639928]
[1751309420973,0.26457339,658.26,657.29,1.18639928]
[1751309421270,0.26457339,658.26,657.3,1.18639928]
[1751309421470,0.26457339,658.26,657.27,2.921]
[1751309421672,0.26457339,658.26,657.28,1.18622937]
[1751309421871,0.26457339,658.26,657.29,1.18622937]
[1751309422071,0.26457339,658.26,657.3,1.18622937]
[1751309422277,0.26457339,658.26,657.27,2.921]
[1751309422472,0.26457339,658.26,657.28,1.18615365]
[1751309422675,0.26457339,658.26,657.29,1.18615365]
[1751309422877,0.26457339,658.26,657.3,1.18615365]
[1751309423176,0.26457339,658.26,657.27,2.921]
[1751309423375,0.26457339,658.26,657.28,1.186086]
[1751309423581,0.26457339,658.26,657.29,1.186086]
[1751309423773,0.26457339,658.26,657.3,1.186086]
[1751309423977,0.26457339,658.26,657.27,2.921]
[1751309424174,0.26457339,658.26,657.28,1.18608287]
[1751309424373,0.26457339,658.26,657.29,1.18608287]
[1751309424572,0.26457339,658.26,657.27,2.921]
[1751309424774,0.26457339,658.26,657.28,1.18600759]
[1751309424977,0.26457339,658.26,657.29,1.18600759]
[1751309425176,0.26457339,658.26,657.29,3.244]
[1751309425978,0.26457339,658.26,657.3,1.18592431]
[1751309426176,0.26457339,658.26,657.29,3.244]
[1751309426380,0.26457339,658.26,657.3,1.18585481]
[1751309426683,0.26457339,658.26,657.29,3.244]
[1751309426875,0.26457339,658.26,657.3,1.18584335]
[1751309427084,0.26457339,658.26,657.31,1.18580198]
[1751309427276,0.26457339,658.26,657.32,1.18580198]
[1751309427477,0.26457339,658.26,657.29,3.244]
[1751309427681,0.26457339,658.26,657.3,1.18565807]
[1751309427877,0.26457339,658.26,657.31,1.18565807]
[1751309428082,0.26457339,658.26,657.32,1.18565807]
[1751309428376,0.26457339,658.26,657.33,1.18565807]
[1751309428580,0.26457339,658.26,657.34,1.18565807]
[1751309428881,0.26457339,658.26,657.35,1.18565807]
[1751309429075,0.26457339,658.26,657.36,1.18565807]
[1751309429280,0.26457339,658.26,657.29,3.244]
[1751309429476,0.26457339,658.26,657.3,1.18541632]
[1751309429680,0.26457339,658.26,657.31,1.18541632]
[1751309429878,0.26457339,658.26,657.32,1.18541632]
[1751309430077,3.79125171,658.24,657.33,1.18541632]
[1751309430378,3.79125171,658.24,657.34,1.18541632]
[1751309430581,3.79125171,658.24,657.35,1.18541632]
[1751309430775,3.79125171,658.24,657.29,3.244]
[1751309430978,3.79125171,658.24,657.3,1.18531354]
[1751309431182,3.79125171,658.24,657.31,1.18531354]
[1751309431382,3.79125171,658.24,657.32,1.18531354]
[1751309431579,3.79125171,658.25,657.33,1.18531354]
[1751309431782,3.79125171,658.25,657.34,1.18531354]
[1751309431977,3.79125171,658.25,657.35,1.18531354]
[1751309432182,3.79125171,658.25,657.29,3.244]
[1751309432382,3.79125171,658.25,657.3,1.18514873]
[1751309432582,3.79125171,658.25,657.31,1.18514873]
[1751309432778,3.79125171,658.25,657.32,1.18514873]
[1751309433078,3.79125171,658.25,657.33,1.18514873]
[1751309433283,0.26457339,658.26,657.34,1.18514873]
[1751309433479,0.26457339,658.26,657.35,1.18514873]
[1751309433782,0.26457339,658.26,657.36,1.18514873]
[1751309433984,0.26457339,658.26,657.29,3.244]
[1751309434279,0.26457339,658.26,657.3,1.18504353]
[1751309434485,0.26457339,658.26,657.31,1.18504353]
[1751309434685,0.26457339,658.26,657.32,1.18504353]
[1751309434884,0.26457339,658.26,657.33,1.18504353]
[1751309435085,0.26457339,658.26,657.34,1.18504353]
[1751309435284,0.26457339,658.26,657.35,1.18504353]
[1751309435483,0.26457339,658.26,657.29,3.244]
[1751309435684,0.26457339,658.26,657.3,1.18487248]
[1751309435983,0.26457339,658.26,657.31,1.18487248]
[1751309436187,0.26457339,658.26,657.32,1.18487248]
[1751309436385,0.26457339,658.26,657.33,1.18487248]
[1751309436587,0.26457339,658.26,657.34,1.18487248]
[1751309436784,0.26457339,658.26,657.29,3.244]
[1751309436785,0.26457339,658.26,657.35,1.18487248]
[1751309436987,0.26457339,658.26,657.36,1.18487248]
[1751309437191,0.26457339,658.26,657.37,1.18487248]
[1751309437484,0.26457339,658.26,657.37,2.912]
[1751309438185,0.26457339,658.26,657.38,1.18468169]
[1751309438391,0.26457339,658.26,657.37,2.912]
[1751309442092,0.26457339,658.26,657.38,1.18435679]
[1751309442291,0.26457339,658.26,657.39,1.18435679]
[1751309442494,0.26457339,658.26,657.37,2.912]
[1751309442495,0.26457339,658.26,657.4,1.18435679]
[1751309442691,0.26457339,658.26,657.41,1.18435679]
[1751309442899,0.26457339,658.26,657.37,2.912]
[1751309443196,0.26457339,658.26,657.38,1.18422742]
[1751309443396,0.26457339,658.26,657.39,1.18422742]
[1751309443599,0.26457339,658.26,657.4,1.18422742]
[1751309443799,0.26457339,658.26,657.37,2.912]
[1751309443996,0.26457339,658.26,657.38,1.18410968]
[1751309444197,0.26457339,658.26,657.39,4.98610968]
[1751309444401,0.26457339,658.26,657.4,1.18410968]
[1751309444602,0.26457339,658.26,657.39,3.802]
[1751309444903,0.26457339,658.26,657.4,1.1840054]
[1751309445204,0.26457339,658.26,657.39,3.802]
[1751309445504,0.26457339,658.26,657.4,1.18391253]
[1751309445803,0.26457339,658.26,657.39,3.802]
[1751309446004,0.26457339,658.26,657.4,1.18413182]
[1751309446201,0.26457339,658.26,657.39,3.802]
[1751309446806,0.26457339,658.26,657.4,1.18405113]
[1751309447005,0.26457339,658.26,657.39,3.802]
[1751309447707,0.26457339,658.26,657.4,1.18397427]
[1751309447907,0.26457339,658.26,657.39,3.802]
[1751309448203,0.26457339,658.26,657.4,1.18396755]
[1751309448407,0.26457339,658.26,657.39,3.802]
[1751309448604,0.26457339,658.26,657.4,1.1838907]
[1751309448907,0.26457339,658.26,657.39,3.802]
[1751309449106,0.26457339,658.26,657.4,1.1838907]
[1751309449408,0.26457339,658.26,657.39,3.802]
[1751309449610,0.26457339,658.26,657.4,1.18382554]
[1751309449808,0.26457339,658.26,657.39,3.802]
[1751309450008,0.26457339,658.26,657.4,1.18382554]
[1751309450206,0.26457339,658.26,657.39,3.802]
[1751309450505,0.26457339,658.26,657.4,1.18375914]
[1751309450810,0.26457339,658.26,657.39,3.802]
[1751309451005,0.26457339,658.26,657.4,1.18377042]
[1751309451210,0.26457339,658.26,657.39,3.802]
[1751309459317,0.26457339,658.26,657.4,3.371]
[1751309467417,0.26457339,658.26,657.41,1.18397346]
[1751309467619,0.26457339,658.26,657.4,3.371]
[1751309467921,0.26457339,658.26,657.41,1.18397049]
[1751309468121,0.26457339,658.26,657.4,3.371]
[1751309469623,0.26457339,658.26,657.41,1.18405216]
[1751309469823,0.26457339,658.26,657.42,1.18405216]
[1751309470023,0.26457339,658.26,657.43,1.18405216]
[1751309470224,0.26457339,658.26,657.42,3.055]
[1751309470524,0.26457339,658.26,657.43,1.18415572]
[1751309470718,0.26457339,658.26,657.42,3.055]
[1751309470923,0.26457339,658.26,657.43,1.18406737]
[1751309471123,0.26457339,658.26,657.42,3.055]
[1751309471319,0.26457339,658.26,657.43,1.18418106]
[1751309471521,0.26457339,658.26,657.42,3.055]
[1751309471721,0.26457339,658.26,657.43,1.1840993]
[1751309471920,0.26457339,658.26,657.42,3.055]
[1751309472225,0.26457339,658.26,657.43,1.1840993]
[1751309472426,0.26457339,658.26,657.42,3.055]
[1751309472623,0.26457339,658.26,657.43,1.18414892]
[1751309472822,0.26457339,658.26,657.42,3.055]
[1751309473026,0.26457339,658.26,657.43,1.18414892]
[1751309473224,0.26457339,658.26,657.42,3.055]
[1751309473425,0.26457339,658.26,657.43,1.1842872]
[1751309473625,0.26457339,658.26,657.42,3.055]
[1751309473822,0.26457339,658.26,657.43,1.18421704]
[1751309474027,0.26457339,658.26,657.42,3.055]
[1751309474229,0.26457339,658.26,657.43,1.18421704]
[1751309474428,0.26457339,658.26,657.42,3.055]
[1751309474726,0.26457339,658.26,657.43,1.18430473]
[1751309474924,0.26457339,658.26,657.42,3.055]
[1751309475230,0.26457339,658.26,657.43,1.18430473]
[1751309475427,0.26457339,658.26,657.44,1.18430473]
[1751309475624,0.26457339,658.26,657.42,3.055]
[1751309475827,0.26457339,658.26,657.43,1.18477781]
[1751309476128,0.26457339,658.26,657.44,1.18477781]
[1751309476325,0.26457339,658.26,657.42,3.055]
[1751309476522,0.26457339,658.26,657.43,1.18475735]
[1751309476725,0.26457339,658.26,657.42,3.055]
[1751309476925,0.26457339,658.26,657.44,2.873]
[1751309478330,0.26457339,658.26,657.45,1.18474675]
[1751309478530,0.26457339,658.26,657.46,1.18474675]
[1751309478732,0.26457339,658.26,657.47,1.18474675]
[1751309478927,0.26457339,658.26,657.48,1.18474675]
[1751309479127,0.26457339,658.26,657.49,1.18474675]
[1751309479329,0.26457339,658.26,657.5,1.18474675]
[1751309479529,0.26457339,658.26,657.44,2.873]
[1751309479825,0.26457339,658.26,657.45,1.18475513]
[1751309480124,0.26457339,658.26,657.46,1.18475513]
[1751309480325,0.26457339,658.26,657.47,1.18475513]
[1751309480528,0.26457339,658.26,657.44,2.873]
[1751309480529,0.26457339,658.26,657.48,1.18475513]
[1751309480729,0.26457339,658.26,657.49,1.18475513]
[1751309480930,0.26457339,658.26,657.5,1.18475513]
[1751309481127,0.26457339,658.26,657.44,2.873]
[1751309481332,0.26457339,658.26,657.45,1.18477405]
[1751309481533,0.26457339,658.26,657.46,1.18477405]
[1751309481728,0.26457339,658.26,657.47,1.18477405]
[1751309481931,0.26457339,658.26,657.48,1.18477405]
[1751309482133,0.26457339,658.26,657.49,1.18477405]
[1751309482336,0.26457339,658.26,657.44,2.873]
[1751309482337,0.26457339,658.26,657.5,1.18477405]
[1751309482538,0.26457339,658.26,657.44,2.873]
[1751309482832,0.26457339,658.26,657.45,1.18484224]
[1751309483129,0.26457339,658.26,657.46,1.18484224]
[1751309483329,0.26457339,658.26,657.47,1.18484224]
[1751309483532,0.26457339,658.26,657.48,1.18484224]
[1751309483737,0.26457339,658.26,657.49,1.18484224]
[1751309483941,0.26457339,658.26,657.5,1.18484224]
[1751309484130,0.26457339,658.26,657.44,2.873]
[1751309484332,0.26457339,658.26,657.45,1.18497672]
[1751309484529,0.26457339,658.26,657.46,1.18497672]
[1751309484830,0.26457339,658.26,657.47,1.18497672]
[1751309485033,0.26457339,658.26,657.48,1.18497672]
[1751309485233,0.26457339,658.26,657.49,1.18497672]
[1751309485434,0.26457339,658.26,657.5,1.18497672]
[1751309485629,0.26457339,658.26,657.44,2.873]
[1751309485833,0.26457339,658.26,657.45,1.18502788]
[1751309486134,0.26457339,658.26,657.46,1.18502788]
[1751309486337,0.26457339,658.26,657.47,1.18502788]
[1751309486535,0.26457339,658.26,657.48,1.18502788]
[1751309486731,0.26457339,658.26,657.49,1.18502788]
[1751309487030,0.26457339,658.26,657.5,1.18502788]
[1751309487229,0.26457339,658.26,657.51,1.18502788]
[1751309487434,0.26457339,658.26,657.46,2.497]
[1751309487731,0.26457339,658.26,657.47,1.1851182]
[1751309487933,0.26457339,658.26,657.48,1.1851182]
[1751309488132,0.26457339,658.26,657.49,1.1851182]
[1751309488333,0.26457339,658.26,657.5,1.1851182]
[1751309488636,0.26457339,658.26,657.51,1.1851182]
[1751309488837,0.26457339,658.26,657.52,1.1851182]
[1751309489137,0.26457339,658.26,657.46,2.497]
[1751309489334,0.26457339,658.26,657.47,1.18519802]
[1751309489537,0.26457339,658.26,657.48,1.18519802]
[1751309489738,0.26457339,658.26,657.49,1.18519802]
[1751309489935,0.26457339,658.26,657.5,1.18519802]
[1751309490139,0.26457339,658.26,657.51,1.18519802]
[1751309490336,0.26457339,658.26,657.52,1.18519802]
[1751309490537,0.26457339,658.26,657.46,2.497]
[1751309490737,0.26457339,658.26,657.47,1.18523284]
[1751309490941,0.26457339,658.26,657.48,1.18523284]
[1751309491138,0.26457339,658.26,657.49,1.18523284]
[1751309491336,0.26457339,658.26,657.5,1.18523284]
[1751309491541,0.26457339,658.26,657.51,1.18523284]
[1751309491742,0.26457339,658.26,657.52,1.18523284]
[1751309491939,0.26457339,658.26,657.46,2.497]
[1751309492142,0.26457339,658.26,657.47,1.18528706]
[1751309492338,0.26457339,658.26,657.46,2.497]
[1751309492339,0.26457339,658.26,657.48,1.18528706]
[1751309492640,0.26457339,658.26,657.49,1.18528706]
[1751309492843,0.26457339,658.26,657.5,1.18528706]
[1751309493040,0.26457339,658.26,657.51,1.18528706]
[1751309493250,0.26457339,658.26,657.52,1.18528706]
[1751309493544,0.26457339,658.26,657.53,1.18528706]
[1751309493746,0.26457339,658.26,657.46,2.497]
[1751309494042,0.26457339,658.26,657.47,1.18541212]
[1751309494247,0.26457339,658.26,657.48,1.18541212]
[1751309494443,0.26457339,658.26,657.49,1.18541212]
[1751309494642,0.26457339,658.26,657.5,1.18541212]
[1751309494845,0.26457339,658.26,657.46,2.497]
[1751309494846,0.26457339,658.26,657.51,1.18541212]
[1751309495042,0.26457339,658.26,657.52,1.18541212]
[1751309495345,0.26457339,658.26,657.53,1.18541212]
[1751309495644,0.26457339,658.26,657.46,2.497]
[1751309495842,0.26457339,658.26,657.47,1.18556373]
[1751309496043,0.26457339,658.26,657.48,1.18556373]
[1751309496240,0.26457339,658.26,657.49,1.18556373]
[1751309496444,0.26457339,658.26,657.5,1.18556373]
[1751309496744,0.26457339,658.26,657.51,1.18556373]
[1751309496938,0.26457339,658.26,657.52,1.18556373]
[1751309497145,0.26457339,658.26,657.53,1.18556373]
[1751309497340,0.26457339,658.26,657.46,2.497]
[1751309497545,0.26457339,658.26,657.47,1.18566688]
[1751309497746,0.26457339,658.26,657.48,1.18566688]
[1751309497946,0.26457339,658.26,657.49,1.18566688]
[1751309498142,0.26457339,658.26,657.5,1.18566688]
[1751309498441,0.26457339,658.26,657.51,1.18566688]
[1751309498741,0.26457339,658.26,657.52,1.18566688]
[1751309498944,0.26457339,658.26,657.53,1.18566688]
[1751309499141,0.26457339,658.26,657.46,2.497]
[1751309499342,0.26457339,658.26,657.47,1.18578689]
[1751309499540,0.26457339,658.26,657.48,1.18578689]
[1751309499745,0.26457339,658.26,657.49,1.18578689]
[1751309499945,0.26457339,658.26,657.5,1.18578689]
[1751309500146,0.26457339,658.26,657.51,1.18578689]
[1751309500346,0.26457339,658.26,657.52,1.18578689]
[1751309500548,0.26457339,658.26,657.53,1.18578689]
[1751309500749,0.26457339,658.26,657.54,1.18578689]
[1751309500950,0.26457339,658.26,657.48,3.802]
[1751309501152,0.26457339,658.26,657.49,1.18587458]
[1751309501449,0.26457339,658.26,657.5,1.18587458]
[1751309501647,0.26457339,658.26,657.51,1.18587458]
[1751309501852,0.26457339,658.26,657.52,1.18587458]
[1751309502051,0.26457339,658.26,657.53,1.18587458]
[1751309502253,0.26457339,658.26,657.54,1.18587458]
[1751309502453,0.26457339,658.26,657.48,3.802]
[1751309502754,0.26457339,658.26,657.49,1.18599183]
[1751309502953,0.26457339,658.26,657.5,1.18599183]
[1751309503151,0.26457339,658.26,657.51,1.18599183]
[1751309503349,0.26457339,658.26,657.52,1.18599183]
[1751309503552,0.26457339,658.26,657.53,1.18599183]
[1751309503752,0.26457339,658.26,657.54,1.18599183]
[1751309503951,0.26457339,658.26,657.48,7.544]
[1751309504256,0.26457339,658.26,657.49,1.18601076]
[1751309504572,0.26457339,658.26,657.5,1.18601076]
[1751309504752,0.26457339,658.26,657.51,1.18601076]
[1751309504952,0.26457339,658.26,657.52,1.18601076]
[1751309505154,0.26457339,658.26,657.53,1.18601076]
[1751309505357,0.26457339,658.26,657.54,1.18601076]
[1751309505551,0.26457339,658.26,657.48,7.544]
[1751309505756,0.26457339,658.26,657.49,1.185584]
[1751309505955,0.26457339,658.26,657.5,1.185584]
[1751309506153,0.26457339,658.26,657.51,1.185584]
[1751309506355,0.26457339,658.26,657.52,1.185584]
[1751309506552,0.26457339,658.26,657.53,1.185584]
[1751309506758,0.26457339,658.26,657.54,1.185584]
[1751309506955,0.26457339,658.26,657.48,7.544]
[1751309507259,0.26457339,658.26,657.49,1.18561255]
[1751309507455,0.26457339,658.26,657.5,1.18561255]
[1751309507671,0.26457339,658.26,657.51,1.18561255]
[1751309507956,0.26457339,658.26,657.52,1.18561255]
[1751309508155,0.26457339,658.26,657.48,7.544]
[1751309508359,0.26457339,658.26,657.49,1.18565774]
[1751309508657,0.26457339,658.26,657.5,1.18565774]
[1751309508956,0.26457339,658.26,657.51,1.18565774]
[1751309509157,0.26457339,658.26,657.52,1.18565774]
[1751309509358,0.26457339,658.26,657.48,7.544]
[1751309509561,0.26457339,658.26,657.49,1.18568938]
[1751309509857,0.26457339,658.26,657.5,1.18568938]
[1751309510057,0.26457339,658.26,657.51,1.18568938]
[1751309510257,0.26457339,658.26,657.52,1.18568938]
[1751309510561,0.26457339,658.26,657.48,7.544]
[1751309510757,0.26457339,658.26,657.49,1.18571614]
[1751309511061,0.26457339,658.26,657.5,1.18571614]
[1751309511259,0.26457339,658.26,657.51,1.18571614]
[1751309511461,0.26457339,658.26,657.52,1.18571614]
[1751309511758,0.26457339,658.26,657.48,7.544]
[1751309511966,0.26457339,658.26,657.49,1.18574617]
[1751309512160,0.26457339,658.26,657.5,1.18574617]
[1751309512360,0.26457339,658.26,657.51,1.18574617]
[1751309512658,0.26457339,658.26,657.52,1.18574617]
[1751309512864,0.26457339,658.26,657.48,7.544]
[1751309513059,0.26457339,658.26,657.49,1.18577894]
[1751309513361,0.26457339,658.26,657.5,1.18577894]
[1751309513560,0.26457339,658.26,657.51,1.18577894]
[1751309513759,0.26457339,658.26,657.52,1.18577894]
[1751309513962,0.26457339,658.26,657.48,7.544]
[1751309514258,0.26457339,658.26,657.49,1.18581499]
[1751309514559,0.26457339,658.26,657.5,1.18581499]
[1751309514761,0.26457339,658.26,657.51,1.18581499]
[1751309515062,0.26457339,658.26,657.52,1.18581499]
[1751309515261,0.26457339,658.26,657.48,3.802]
[1751309515456,0.26457339,658.26,657.49,1.18588639]
[1751309515659,0.26457339,658.26,657.5,1.18588639]
[1751309515962,3.79125171,658.37,657.51,1.18588639]
[1751309516163,0.26457842,658.08,657.52,1.18588639]
[1751309516364,3.79125171,658.37,657.48,3.802]
[1751309516563,0.26457641,658.06,657.49,1.18594336]
[1751309516760,0.26457641,658.06,657.5,1.18594336]
[1751309516964,3.79125171,658.37,657.51,1.18594336]
[1751309517259,3.79125171,658.37,657.52,1.18594336]
[1751309517465,5.3077524,658.58,657.48,3.802]
[1751309517661,5.3077524,658.58,657.49,1.18601003]
[1751309517866,5.3077524,658.58,657.5,1.18601003]
[1751309518078,0.26457842,658.31,657.51,1.18601003]
[1751309518265,0.26457842,658.31,657.52,1.18601003]
[1751309518465,0.26457842,658.31,657.53,1.18601003]
[1751309518665,0.26457842,658.31,657.54,1.18601003]
[1751309518866,0.26457842,658.31,657.55,1.18601003]
[1751309519060,0.26457842,658.31,657.56,1.18601003]
[1751309519363,0.26457842,658.31,657.57,1.18601003]
[1751309519565,0.26457842,658.31,657.54,2.768]
[1751309519767,0.26457842,658.31,657.55,1.18613495]
[1751309519967,0.26457842,658.31,657.56,1.18613495]
[1751309520165,0.26457842,658.31,657.54,2.768]
[1751309520367,0.26457842,658.31,657.55,1.18613495]
[1751309520565,0.26457842,658.31,657.56,1.18613495]
[1751309520765,0.26457842,658.31,657.57,1.18613495]
[1751309520963,0.26457842,658.31,657.56,3.91]
[1751309531471,0.26457842,658.31,657.57,3.235]
[1751309543876,3.79125171,658.3,657.57,3.235]
[1751309544675,0.26457842,658.31,657.57,3.235]
[1751309567595,4.05583013,658.31,657.57,3.235]
[1751309568194,0.26457842,658.31,657.57,3.235]
[1751309568795,0.26457842,658.31,657.58,3.067]
[1751309586414,0.26457842,658.31,657.59,3.431]
[1751309588016,4.05583013,658.31,657.59,3.431]